[Event "23rd Alekhine FIDE 2019"]
[Site "Voronezh"]
[Date "2019.06.14"]
[Round "3.6"]
[White "Ershova, Sofya"]
[Black "Ioffe, Evgeny"]
[Result "1/2-1/2"]
[ECO "C84"]
[WhiteElo "1798"]
[BlackElo "2082"]
[Annotator "NA"]
[PlyCount "133"]
[EventDate "2019.06.12"]
[EventType "swiss"]
[EventCountry "RUS"]
[SourceTitle "playchess.com"]
[Source "ChessBase"]
[SourceQuality "1"]
[TimeControl "40/5400+30:1800+30"]

1. e4 {[%emt 0:00:32]} e5 {[%emt 0:00:00]} 2. Nf3 {[%emt 0:00:05]} Nc6 {[%emt 0:00:00]} 3. Bb5 {[%emt 0:00:05]} a6 {[%emt 0:00:05]} 4. Ba4 {[%emt 0:00:06]} Nf6 {[%emt 0:01:30]} 5. O-O {[%emt 0:00:05]} Be7 {[%emt 0:00:16]} 6. d3 {[%emt 0:00:18]} b5 {[%emt 0:00:23]} 7. Bb3 {[%emt 0:00:05]} O-O {[%emt 0:00:15]} 8. a4 {[%emt 0:00:23]} b4 {[%emt 0:02:39]} 9. a5 {[%emt 0:00:11]} d6 {[%emt 0:00:59]} 10. Nbd2 {[%emt 0:00:47]} h6 {[%emt 0:02:19]} 11. h3 {[%emt 0:03:12]} Re8 {[%emt 0:00:40]} 12. Nc4 {[%emt 0:01:10]} Bf8 {[%emt 0:00:24]} 13. Ne3 {[%emt 0:02:25]} Rb8 {[%emt 0:04:33]} 14. c3 {[%emt 0:20:33]} Bd7 {[%emt 0:09:39]} 15. Bc4 {[%emt 0:04:45]} Qc8 {[%emt 0:00:43]} 16. Nh4 {[%emt 0:03:42]} bxc3 {[%emt 0:03:26]} 17. bxc3 {[%emt 0:01:38]} Ne7 {[%emt 0:03:26]} 18. f4 {[%emt 0:09:42]} exf4 {[%emt 0:04:27]} 19. Rxf4 {[%emt 0:00:47]} Be6 {[%emt 0:00:41]} 20. Bxe6 {[%emt 0:00:30]} Qxe6 {[%emt 0:00:30]} 21. Ng4 {[%emt 0:00:30]} Nxg4 {[%emt 0:00:30]} 22. Rxg4 {[%emt 0:00:30]} g6 {[%emt 0:00:30]} 23. Be3 {[%emt 0:00:30]} Bg7 {[%emt 0:18:30]} 24. Qd2 {[%emt 0:33:47]} Kh7 {[%emt 0:00:21]} 25. Nf3 {[%emt 0:00:23]} Qb3 {[%emt 0:18:00]} 26. Rh4 {[%emt 0:05:44]} Bxc3 {[%emt 0:07:48]} 27. Rxh6+ {[%emt 0:00:30]} Kg8 {[%emt 0:00:16]} 28. Bd4 {[%emt 0:00:36]} Bxd4+ {[%emt 0:01:21]} 29. Nxd4 {[%emt 0:00:01]} Qb2 {[%emt 0:00:58]} 30. Qxb2 {[%emt 0:04:55]} Rxb2 {[%emt 0:00:02]} 31. Nf3 {[%emt 0:01:36]} Reb8 {[%emt 0:01:52]} 32. Rh4 {[%emt 0:04:27]} Rb1+ {[%emt 0:01:21]} 33. Rxb1 {[%emt 0:00:00]} Rxb1+ {[%emt 0:00:16]} 34. Kf2 {[%emt 0:00:01]} Rb5 {[%emt 0:01:25]} 35. e5 {[%emt 0:01:02]} dxe5 {[%emt 0:02:42]} 36. Rc4 {[%emt 0:00:24]} c6 {[%emt 0:00:59]} 37. Ra4 {[%emt 0:00:26]} f6 {[%emt 0:01:00]} 38. g4 {[%emt 0:01:04]} Kf7 {[%emt 0:00:58]} 39. h4 {[%emt 0:00:52]} Ke6 {[%emt 0:01:42]} 40. Nd2 {[%emt 0:00:47]} Rb2 {[%emt 0:02:37]} 41. Ke1 {[%emt 0:30:01]} c5 {[%emt 0:31:42]} 42. Rc4 {[%emt 0:01:11]} Rb4 {[%emt 0:02:13]} 43. Ne4 {[%emt 0:00:07]} Rxc4 {[%emt 0:04:35]} 44. dxc4 {[%emt 0:00:06]} Nc6 {[%emt 0:00:48]} 45. Nxc5+ {[%emt 0:00:03]} Kf7 {[%emt 0:01:05]} 46. Nb7 {[%emt 0:01:36]} f5 {[%emt 0:00:35]} 47. h5 {[%emt 0:00:47]} gxh5 {[%emt 0:01:03]} 48. gxh5 {[%emt 0:00:28]} Kf6 {[%emt 0:00:32]} 49. c5 {[%emt 0:00:24]} Kg5 {[%emt 0:00:36]} 50. h6 Kxh6 51. Nd6 Kg5 {[%emt 0:01:13]} 52. Nc4 {[%emt 0:00:48]} e4 {[%emt 0:00:25]} 53. Kf2 {[%emt 0:00:45]} Kf4 {[%emt 0:00:31]} 54. Ke2 {[%emt 0:00:20]} Nd4+ {[%emt 0:00:20]} 55. Kf2 {[%emt 0:00:23]} Nc6 {[%emt 0:00:20]} 56. Ke2 {[%emt 0:00:04]} Kg5 {[%emt 0:00:49]} 57. Nd6 {[%emt 0:00:57]} Kf6 {[%emt 0:00:44]} 58. Ke3 {[%emt 0:00:06]} Ke5 {[%emt 0:00:33]} 59. Nc4+ {[%emt 0:00:09]} Kd5 {[%emt 0:00:17]} 60. Nd6 {[%emt 0:00:12]} Nxa5 {[%emt 0:00:42]} 61. Nxf5 {[%emt 0:00:07]} Nc4+ {[%emt 0:00:11]} 62. Kf4 {[%emt 0:00:55]} a5 {[%emt 0:00:50]} 63. c6 Kxc6 {[%emt 0:00:39]} 64. Kxe4 {[%emt 0:00:22]} Kb5 {[%emt 0:00:14]} 65. Nd4+ {[%emt 0:00:13]} Kb6 {[%emt 0:00:46]} 66. Kd3 {[%emt 0:00:04]} Nd6 {[%emt 0:00:25]} 67. Kc3 {[%emt 0:00:46]} 1/2-1/2

[Event "23rd Alekhine FIDE 2019"]
[Site "Voronezh"]
[Date "2019.06.14"]
[Round "3.7"]
[White "Mikhnenko, Alexander"]
[Black "Sokolovsky, Victor"]
[Result "1-0"]
[ECO "A45"]
[WhiteElo "2052"]
[BlackElo "1916"]
[Annotator "NA"]
[PlyCount "50"]
[EventDate "2019.06.12"]
[EventType "swiss"]
[EventCountry "RUS"]
[SourceTitle "playchess.com"]
[Source "ChessBase"]
[SourceQuality "1"]
[TimeControl "40/5400+30:1800+30"]

1. d4 {[%emt 0:06:39]} Nf6 {[%emt 0:00:23]} 2. Bg5 {[%emt 0:00:19]} d5 {[%emt 0:00:24]} 3. e3 {[%emt 0:01:16]} e6 {[%emt 0:01:00]} 4. Bd3 {[%emt 0:00:57]} c5 {[%emt 0:00:26]} 5. c3 {[%emt 0:00:10]} Nc6 {[%emt 0:01:05]} 6. f4 {[%emt 0:03:17]} h6 {[%emt 0:01:23]} 7. Bh4 {[%emt 0:04:35]} Bd6 {[%emt 0:01:34]} 8. Nd2 {[%emt 0:03:14]} g5 {[%emt 0:03:15]} 9. fxg5 {[%emt 0:00:37]} hxg5 {[%emt 0:00:09]} 10. Bxg5 {[%emt 0:00:24]} e5 {[%emt 0:03:23]} 11. dxc5 {[%emt 0:16:24]} Bxc5 {[%emt 0:00:37]} 12. Qe2 {[%emt 0:03:22]} Bg4 {[%emt 0:05:10]} 13. Qf2 {[%emt 0:01:18]} Be7 {[%emt 0:00:51]} 14. Ne2 {[%emt 0:01:06]} Ne4 {[%emt 0:04:39]} 15. Nxe4 {[%emt 0:10:42]} Bxg5 {[%emt 0:02:10]} 16. Nxg5 {[%emt 0:00:30]} Qxg5 {[%emt 0:00:30]} 17. h3 {[%emt 0:00:30]} d4 {[%emt 0:00:30]} 18. Rf1 {[%emt 0:00:30]} Be6 {[%emt 0:00:30]} 19. Qf6 {[%emt 0:00:30]} Rg8 {[%emt 0:00:30]} 20. Qxg5 {[%emt 0:00:30]} Rxg5 {[%emt 0:00:30]} 21. exd4 {[%emt 0:00:30]} Rxg2 {[%emt 0:00:30]} 22. Be4 {[%emt 0:00:30]} Rh2 {[%emt 0:00:30]} 23. d5 {[%emt 0:00:30]} f5 {[%emt 0:00:30]} 24. Bf3 {[%emt 0:00:30]} Bf7 {[%emt 0:00:30]} 25. dxc6 {[%emt 0:00:30]} e4 {[%emt 0:00:30]} 1-0

[Event "23rd Alekhine FIDE 2019"]
[Site "Voronezh"]
[Date "2019.06.14"]
[Round "3.8"]
[White "Vasiljev, Ilya"]
[Black "Kiseleva, Arina"]
[Result "1-0"]
[ECO "B57"]
[WhiteElo "1762"]
[BlackElo "2049"]
[Annotator "NA"]
[PlyCount "100"]
[EventDate "2019.06.12"]
[EventType "swiss"]
[EventCountry "RUS"]
[SourceTitle "playchess.com"]
[Source "ChessBase"]
[SourceQuality "1"]
[TimeControl "40/5400+30:1800+30"]

1. e4 c5 2. Nf3 d6 3. d4 cxd4 4. Nxd4 Nf6 5. Nc3 Nc6 6. Bc4 Bd7 7. a3 g6 8. f3 Nxd4 9. Qxd4 Bg7 10. Be3 O-O 11. Qd2 Qc7 12. Ba2 Be6 13. Bxe6 fxe6 14. O-O a6 15. Kh1 b5 16. Bh6 Qc5 17. Bxg7 Kxg7 18. a4 b4 19. Nd1 Nxe4 20. Qe2 Qf5 21. Ne3 Qh5 22. Qe1 Nf6 23. Qxb4 Rab8 24. Qa3 Rfc8 25. Rfe1 a5 26. c3 Qh4 27. Qa2 d5 28. Nc2 Qf2 29. Rac1 Rb6 30. Qa3 Kf7 31. Rf1 Qd2 32. Rfd1 Qg5 33. Nd4 Nh5 34. Rc2 Nf4 35. Rcd2 Qf6 36. b4 axb4 37. cxb4 e5 38. Nb5 d4 39. Qb3+ Qe6 40. Qb1 Nd5 41. Re1 Ne3 42. f4 exf4 43. Rxd4 Qf6 44. Qb3+ Kf8 45. Qd3 Kg7 46. Re4 Rb7 47. Qd4 g5 48. g3 Qxd4 49. Nxd4 Nd5 50. Ne6+ Kf6 1-0

[Event "23rd Alekhine FIDE 2019"]
[Site "Voronezh"]
[Date "2019.06.14"]
[Round "3.9"]
[White "Natarov, Ilya"]
[Black "Rudakov, Sergey S."]
[Result "1-0"]
[ECO "A40"]
[WhiteElo "2045"]
[BlackElo "1880"]
[Annotator "NA"]
[PlyCount "114"]
[EventDate "2019.06.12"]
[EventType "swiss"]
[EventCountry "RUS"]
[SourceTitle "playchess.com"]
[Source "ChessBase"]
[SourceQuality "1"]
[TimeControl "40/5400+30:1800+30"]

1. d4 {[%emt 0:06:32]} Nf6 {[%emt 0:00:00]} 2. c4 {[%emt 0:00:15]} e6 {[%emt 0:00:00]} 3. g3 {[%emt 0:00:09]} d5 {[%emt 0:00:08]} 4. Nf3 {[%emt 0:00:05]} b6 {[%emt 0:02:07]} 5. cxd5 {[%emt 0:01:14]} Nxd5 {[%emt 0:01:44]} 6. Bg2 {[%emt 0:05:38]} Bb7 {[%emt 0:01:18]} 7. O-O {[%emt 0:01:26]} Be7 {[%emt 0:00:09]} 8. Re1 {[%emt 0:02:53]} O-O {[%emt 0:00:20]} 9. e4 {[%emt 0:01:14]} Nf6 {[%emt 0:00:03]} 10. Nc3 {[%emt 0:00:07]} Bb4 {[%emt 0:03:06]} 11. Qc2 {[%emt 0:03:15]} Nc6 {[%emt 0:06:55]} 12. a3 {[%emt 0:01:39]} Be7 {[%emt 0:02:08]} 13. Rd1 {[%emt 0:05:57]} Nd7 {[%emt 0:06:49]} 14. Bf4 {[%emt 0:04:46]} g5 {[%emt 0:04:05]} 15. Be3 {[%emt 0:01:22]} g4 {[%emt 0:00:51]} 16. Nd2 {[%emt 0:04:59]} Bg5 {[%emt 0:01:31]} 17. Nc4 {[%emt 0:02:08]} Bxe3 18. Nxe3 {[%emt 0:00:12]} Qg5 {[%emt 0:03:11]} 19. e5 {[%emt 0:28:18]} f5 {[%emt 0:15:29]} 20. exf6 {[%emt 0:00:35]} Nxf6 {[%emt 0:02:05]} 21. Ne4 {[%emt 0:00:36]} Qg6 {[%emt 0:01:17]} 22. Nxf6+ Qxf6 {[%emt 0:00:04]} 23. Nxg4 {[%emt 0:01:40]} Qg7 {[%emt 0:00:21]} 24. Ne3 {[%emt 0:05:39]} Nxd4 {[%emt 0:00:46]} 25. Rxd4 {[%emt 0:00:31]} Qxd4 {[%emt 0:00:04]} 26. Bxb7 {[%emt 0:00:15]} Rad8 {[%emt 0:00:13]} 27. Rd1 {[%emt 0:03:43]} Qe5 {[%emt 0:00:37]} 28. Rxd8 {[%emt 0:01:31]} Rxd8 {[%emt 0:00:06]} 29. Be4 {[%emt 0:04:29]} h6 {[%emt 0:00:42]} 30. Bf3 {[%emt 0:05:11]} Rf8 {[%emt 0:01:31]} 31. Qg6+ {[%emt 0:00:32]} Qg7 {[%emt 0:00:20]} 32. Qxe6+ {[%emt 0:00:30]} Qf7 {[%emt 0:00:47]} 33. Qxf7+ {[%emt 0:01:25]} Kxf7 {[%emt 0:00:04]} 34. Kf1 {[%emt 0:00:14]} c5 {[%emt 0:00:08]} 35. Ke2 {[%emt 0:00:16]} b5 {[%emt 0:00:11]} 36. Bd5+ {[%emt 0:00:26]} Ke7 {[%emt 0:00:09]} 37. f4 {[%emt 0:01:13]} b4 {[%emt 0:00:23]} 38. axb4 {[%emt 0:00:16]} cxb4 {[%emt 0:00:04]} 39. Kd3 {[%emt 0:03:00]} a5 {[%emt 0:00:13]} 40. Ng4 {[%emt 0:02:03]} a4 {[%emt 0:02:07]} 41. Kc4 {[%emt 0:31:13]} Kd6 {[%emt 0:30:54]} 42. Bf3 {[%emt 0:02:07]} Rb8 {[%emt 0:00:30]} 43. Nxh6 {[%emt 0:00:23]} b3 {[%emt 0:00:53]} 44. Nf5+ {[%emt 0:00:13]} Kd7 {[%emt 0:00:08]} 45. Be4 {[%emt 0:00:54]} Rc8+ {[%emt 0:01:01]} 46. Kb4 {[%emt 0:00:25]} Rc2 {[%emt 0:00:13]} 47. Kxa4 {[%emt 0:00:26]} Rxb2 {[%emt 0:00:10]} 48. Bd5 {[%emt 0:00:13]} Rxh2 {[%emt 0:00:27]} 49. Kxb3 {[%emt 0:00:14]} Rd2 {[%emt 0:01:07]} 50. Bc4 {[%emt 0:00:01]} Kc6 {[%emt 0:00:29]} 51. Kc3 {[%emt 0:00:04]} Rf2 {[%emt 0:00:07]} 52. Kd4 {[%emt 0:00:14]} Rd2+ {[%emt 0:00:50]} 53. Ke5 {[%emt 0:00:08]} Kc5 {[%emt 0:00:07]} 54. Be6 {[%emt 0:00:10]} Re2+ {[%emt 0:00:33]} 55. Kf6 {[%emt 0:00:05]} Rf2 {[%emt 0:00:08]} 56. Kg5 {[%emt 0:00:18]} Re2 {[%emt 0:00:14]} 57. Bf7 {[%emt 0:00:13]} Re6 1-0

[Event "23rd Alekhine FIDE 2019"]
[Site "Voronezh"]
[Date "2019.06.14"]
[Round "3.10"]
[White "Artemov, Nikita"]
[Black "Ashutosh, Kumar"]
[Result "1/2-1/2"]
[ECO "E32"]
[WhiteElo "2028"]
[BlackElo "1852"]
[Annotator "NA"]
[PlyCount "83"]
[EventDate "2019.06.12"]
[EventType "swiss"]
[EventCountry "RUS"]
[SourceTitle "playchess.com"]
[Source "ChessBase"]
[SourceQuality "1"]
[TimeControl "40/5400+30:1800+30"]

1. d4 {[%emt 0:06:03]} Nf6 {[%emt 0:00:00]} 2. c4 {[%emt 0:00:06]} e6 {[%emt 0:00:10]} 3. Nc3 {[%emt 0:00:04]} Bb4 {[%emt 0:00:13]} 4. Qc2 {[%emt 0:00:04]} O-O {[%emt 0:00:41]} 5. a3 {[%emt 0:00:06]} Bxc3+ {[%emt 0:00:07]} 6. Qxc3 {[%emt 0:00:04]} b6 {[%emt 0:00:57]} 7. Nf3 {[%emt 0:02:11]} Bb7 {[%emt 0:00:27]} 8. e3 {[%emt 0:00:05]} d6 {[%emt 0:00:50]} 9. Be2 {[%emt 0:00:08]} Nbd7 {[%emt 0:04:33]} 10. O-O {[%emt 0:00:15]} Qe7 {[%emt 0:00:20]} 11. b3 {[%emt 0:00:31]} c5 {[%emt 0:00:43]} 12. Bb2 {[%emt 0:00:06]} Rfd8 {[%emt 0:03:24]} 13. Rfd1 {[%emt 0:00:22]} cxd4 {[%emt 0:02:28]} 14. Nxd4 {[%emt 0:11:13]} Nc5 {[%emt 0:01:31]} 15. f3 {[%emt 0:01:00]} d5 {[%emt 0:06:00]} 16. a4 {[%emt 0:02:22]} dxc4 {[%emt 0:02:26]} 17. Bxc4 {[%emt 0:02:02]} a6 {[%emt 0:04:15]} 18. e4 {[%emt 0:04:12]} Rac8 {[%emt 0:03:46]} 19. Rac1 {[%emt 0:11:48]} h6 {[%emt 0:03:56]} 20. Qe3 {[%emt 0:03:21]} Rd7 {[%emt 0:11:38]} 21. Be2 {[%emt 0:13:20]} Rdc7 {[%emt 0:04:20]} 22. Ba3 {[%emt 0:03:12]} Nh7 {[%emt 0:10:05]} 23. b4 {[%emt 0:05:59]} Nxa4 {[%emt 0:00:37]} 24. b5 {[%emt 0:00:06]} Qg5 {[%emt 0:04:21]} 25. Qxg5 {[%emt 0:01:04]} hxg5 {[%emt 0:00:10]} 26. Rxc7 {[%emt 0:01:09]} Rxc7 {[%emt 0:00:04]} 27. bxa6 {[%emt 0:00:07]} Ba8 {[%emt 0:05:29]} 28. Nf5 {[%emt 0:05:12]} Nf6 {[%emt 0:01:01]} 29. Rd8+ {[%emt 0:02:34]} Kh7 {[%emt 0:00:06]} 30. Rxa8 {[%emt 0:02:04]} exf5 {[%emt 0:00:13]} 31. a7 {[%emt 0:00:48]} Nc3 {[%emt 0:02:16]} 32. Rh8+ {[%emt 0:00:49]} Kxh8 {[%emt 0:00:05]} 33. a8=Q+ {[%emt 0:00:05]} Kh7 {[%emt 0:00:07]} 34. Bf1 {[%emt 0:01:09]} fxe4 {[%emt 0:00:36]} 35. fxe4 {[%emt 0:01:14]} Nfxe4 {[%emt 0:00:13]} 36. Bd3 {[%emt 0:01:26]} f5 {[%emt 0:00:10]} 37. Qf8 {[%emt 0:01:49]} g6 {[%emt 0:00:59]} 38. Bc4 {[%emt 0:00:38]} Rg7 {[%emt 0:00:58]} 39. Bb2 {[%emt 0:03:00]} b5 {[%emt 0:01:05]} 40. Bd5 {[%emt 0:00:00]} Ne2+ {[%emt 0:00:00]} 41. Kf1 {[%emt 0:00:57]} N4c3 {[%emt 0:01:06]} 42. Bf3 {[%emt 0:01:20]} 1/2-1/2

[Event "23rd Alekhine FIDE 2019"]
[Site "Voronezh"]
[Date "2019.06.14"]
[Round "3.11"]
[White "Popov, Maksim M."]
[Black "Maraktanov, Andrey"]
[Result "1-0"]
[ECO "A04"]
[WhiteElo "2182"]
[BlackElo "1787"]
[Annotator "NA"]
[PlyCount "73"]
[EventDate "2019.06.12"]
[EventType "swiss"]
[EventCountry "RUS"]
[SourceTitle "playchess.com"]
[Source "ChessBase"]
[SourceQuality "1"]
[TimeControl "40/5400+30:1800+30"]

1. Nf3 {[%emt 0:00:00]} c5 {[%emt 0:00:00]} 2. c4 {[%emt 0:00:00]} Nc6 {[%emt 0:00:00]} 3. d4 {[%emt 0:00:00]} cxd4 {[%emt 0:00:28]} 4. Nxd4 {[%emt 0:00:08]} g6 {[%emt 0:02:22]} 5. Nc3 {[%emt 0:07:20]} Bg7 {[%emt 0:01:55]} 6. e3 {[%emt 0:00:38]} Nf6 {[%emt 0:02:22]} 7. g3 {[%emt 0:00:47]} d6 {[%emt 0:13:17]} 8. Bg2 {[%emt 0:00:23]} Bd7 {[%emt 0:00:12]} 9. O-O {[%emt 0:01:07]} O-O {[%emt 0:00:06]} 10. b3 {[%emt 0:01:22]} a6 {[%emt 0:07:48]} 11. Bb2 {[%emt 0:01:30]} Rb8 {[%emt 0:00:33]} 12. Re1 {[%emt 0:09:21]} Nxd4 {[%emt 0:03:02]} 13. exd4 {[%emt 0:00:33]} b5 {[%emt 0:02:19]} 14. c5 {[%emt 0:01:24]} dxc5 {[%emt 0:02:14]} 15. dxc5 {[%emt 0:00:07]} b4 {[%emt 0:01:44]} 16. Nd5 {[%emt 0:02:32]} Re8 {[%emt 0:19:21]} 17. Rc1 {[%emt 0:01:44]} Nxd5 {[%emt 0:06:55]} 18. Bxg7 {[%emt 0:00:09]} Kxg7 {[%emt 0:00:04]} 19. Qxd5 {[%emt 0:00:40]} Be6 {[%emt 0:00:48]} 20. Qe5+ {[%emt 0:00:22]} Kg8 {[%emt 0:00:12]} 21. c6 {[%emt 0:00:33]} Rb5 {[%emt 0:01:44]} 22. Qf4 {[%emt 0:01:35]} Qb6 {[%emt 0:01:59]} 23. c7 {[%emt 0:02:16]} Rc8 {[%emt 0:01:27]} 24. Rc6 {[%emt 0:00:34]} Qa5 {[%emt 0:03:37]} 25. Rexe6 {[%emt 0:05:52]} fxe6 {[%emt 0:00:28]} 26. Bh3 {[%emt 0:00:07]} Rf5 27. Bxf5 {[%emt 0:00:48]} exf5 {[%emt 0:13:40]} 28. Qc4+ {[%emt 0:02:09]} Kf8 {[%emt 0:00:53]} 29. h4 {[%emt 0:03:40]} f4 {[%emt 0:11:32]} 30. Qxf4+ {[%emt 0:00:21]} Ke8 {[%emt 0:00:14]} 31. Qc4 {[%emt 0:00:53]} Kf8 {[%emt 0:00:21]} 32. Qg4 {[%emt 0:05:24]} Qf5 {[%emt 0:01:38]} 33. Qxb4 {[%emt 0:00:37]} a5 {[%emt 0:00:27]} 34. Qd4 {[%emt 0:05:13]} Ke8 {[%emt 0:01:45]} 35. Rc5 {[%emt 0:00:34]} Qe6 {[%emt 0:00:33]} 36. Qa4+ {[%emt 0:00:34]} Kf8 {[%emt 0:00:15]} 37. Qxa5 {[%emt 0:00:13]} 1-0

[Event "23rd Alekhine FIDE 2019"]
[Site "Voronezh"]
[Date "2019.06.14"]
[Round "3.12"]
[White "Katkov, Vitaly"]
[Black "Bratov, Ademir"]
[Result "1/2-1/2"]
[ECO "A83"]
[WhiteElo "2001"]
[BlackElo "1725"]
[Annotator "NA"]
[PlyCount "92"]
[EventDate "2019.06.12"]
[EventType "swiss"]
[EventCountry "RUS"]
[SourceTitle "playchess.com"]
[Source "ChessBase"]
[SourceQuality "1"]
[TimeControl "40/5400+30:1800+30"]

1. d4 {[%emt 0:00:03]} f5 {[%emt 0:00:00]} 2. e4 {[%emt 0:01:54]} fxe4 {[%emt 0:00:57]} 3. Nc3 {[%emt 0:00:06]} Nf6 {[%emt 0:00:07]} 4. Bg5 {[%emt 0:00:06]} Nc6 {[%emt 0:01:18]} 5. f3 {[%emt 0:01:40]} d5 {[%emt 0:08:42]} 6. Bb5 {[%emt 0:08:16]} exf3 {[%emt 0:12:31]} 7. Nxf3 {[%emt 0:02:12]} Bg4 {[%emt 0:00:32]} 8. h3 {[%emt 0:01:57]} Bxf3 {[%emt 0:01:23]} 9. Qxf3 {[%emt 0:00:17]} e6 {[%emt 0:00:12]} 10. O-O {[%emt 0:01:45]} Be7 {[%emt 0:01:14]} 11. Rae1 {[%emt 0:05:36]} O-O {[%emt 0:04:03]} 12. Bxc6 {[%emt 0:00:53]} bxc6 {[%emt 0:00:06]} 13. Qe3 {[%emt 0:01:00]} Rf7 {[%emt 0:12:31]} 14. Qxe6 {[%emt 0:00:45]} Qd6 {[%emt 0:05:01]} 15. Bf4 {[%emt 0:11:24]} Qxe6 16. Rxe6 {[%emt 0:00:06]} c5 {[%emt 0:04:16]} 17. Be5 {[%emt 0:03:30]} cxd4 {[%emt 0:01:42]} 18. Bxf6 {[%emt 0:00:33]} dxc3 {[%emt 0:03:39]} 19. Rxe7 {[%emt 0:01:19]} gxf6 {[%emt 0:00:09]} 20. Rxf7 Kxf7 {[%emt 0:00:06]} 21. bxc3 {[%emt 0:01:32]} Rb8 {[%emt 0:00:21]} 22. Rf5 {[%emt 0:00:50]} c6 {[%emt 0:01:58]} 23. c4 {[%emt 0:00:12]} Kg6 {[%emt 0:04:24]} 24. Rf4 {[%emt 0:03:23]} Rb4 {[%emt 0:06:05]} 25. Rg4+ {[%emt 0:04:16]} Kf7 {[%emt 0:00:09]} 26. cxd5 {[%emt 0:02:37]} Rxg4 27. hxg4 {[%emt 0:00:07]} cxd5 {[%emt 0:01:42]} 28. Kf2 {[%emt 0:00:21]} Ke6 {[%emt 0:02:50]} 29. Ke3 {[%emt 0:00:35]} Ke5 {[%emt 0:00:06]} 30. c3 {[%emt 0:00:07]} h6 {[%emt 0:00:30]} 31. a4 {[%emt 0:00:27]} a5 {[%emt 0:01:14]} 32. g3 {[%emt 0:01:20]} f5 {[%emt 0:02:10]} 33. gxf5 {[%emt 0:01:04]} Kxf5 {[%emt 0:00:07]} 34. Kd4 {[%emt 0:00:21]} Kg4 {[%emt 0:00:23]} 35. Kxd5 {[%emt 0:06:07]} Kxg3 {[%emt 0:00:06]} 36. c4 {[%emt 0:01:51]} h5 {[%emt 0:00:10]} 37. c5 {[%emt 0:00:17]} h4 {[%emt 0:00:04]} 38. c6 {[%emt 0:00:06]} h3 {[%emt 0:00:04]} 39. c7 {[%emt 0:00:07]} h2 {[%emt 0:00:05]} 40. c8=Q {[%emt 0:00:25]} h1=Q+ {[%emt 0:00:06]} 41. Kd4 {[%emt 0:35:53]} Qd1+ {[%emt 0:30:47]} 42. Ke3 {[%emt 0:00:19]} Qb3+ {[%emt 0:00:13]} 43. Kd2 {[%emt 0:00:11]} Qxa4 {[%emt 0:00:27]} 44. Qf5 {[%emt 0:04:31]} Qb4+ {[%emt 0:02:19]} 45. Kc2 {[%emt 0:01:02]} a4 {[%emt 0:01:37]} 46. Qg5+ {[%emt 0:01:09]} Kf3 {[%emt 0:01:50]} 1/2-1/2

[Event "23rd Alekhine FIDE 2019"]
[Site "Voronezh"]
[Date "2019.06.14"]
[Round "3.13"]
[White "Ponomariov, Timur"]
[Black "Medvedev, Matvey"]
[Result "1-0"]
[ECO "D00"]
[WhiteElo "2172"]
[BlackElo "1929"]
[Annotator "NA"]
[PlyCount "54"]
[EventDate "2019.06.12"]
[EventType "swiss"]
[EventCountry "RUS"]
[SourceTitle "playchess.com"]
[Source "ChessBase"]
[SourceQuality "1"]
[TimeControl "40/5400+30:1800+30"]

1. d4 {[%emt 0:00:00]} d5 {[%emt 0:00:00]} 2. Nc3 {[%emt 0:00:00]} Nf6 {[%emt 0:00:00]} 3. Bf4 {[%emt 0:00:00]} e6 {[%emt 0:00:06]} 4. Nb5 {[%emt 0:00:00]} Na6 {[%emt 0:00:22]} 5. e3 {[%emt 0:00:00]} Be7 {[%emt 0:02:13]} 6. Nf3 {[%emt 0:00:06]} O-O {[%emt 0:00:12]} 7. Ne5 {[%emt 0:00:04]} c6 {[%emt 0:01:33]} 8. Nc3 {[%emt 0:00:01]} Qa5 {[%emt 0:00:23]} 9. Bd3 {[%emt 0:02:13]} Nb4 {[%emt 0:00:38]} 10. Be2 {[%emt 0:00:02]} Ne4 {[%emt 0:03:38]} 11. O-O {[%emt 0:00:02]} f6 {[%emt 0:04:53]} 12. Nxe4 {[%emt 0:04:02]} fxe5 {[%emt 0:09:15]} 13. Bg5 {[%emt 0:00:01]} Qd8 {[%emt 0:03:12]} 14. Bxe7 {[%emt 0:00:09]} Qxe7 {[%emt 0:00:03]} 15. Nd2 {[%emt 0:06:05]} e4 {[%emt 0:01:06]} 16. c3 {[%emt 0:06:01]} Na6 {[%emt 0:00:24]} 17. Bxa6 {[%emt 0:00:13]} bxa6 {[%emt 0:00:03]} 18. f4 {[%emt 0:00:32]} Rb8 {[%emt 0:10:45]} 19. Nb3 {[%emt 0:00:28]} Rf6 {[%emt 0:05:44]} 20. Qe2 {[%emt 0:00:54]} Rh6 {[%emt 0:00:57]} 21. Nc5 {[%emt 0:00:40]} Rg6 {[%emt 0:03:03]} 22. b4 {[%emt 0:01:06]} a5 {[%emt 0:07:01]} 23. bxa5 {[%emt 0:02:42]} Qd8 {[%emt 0:01:17]} 24. Rab1 {[%emt 0:01:11]} Rxb1 {[%emt 0:00:26]} 25. Rxb1 {[%emt 0:00:01]} Qxa5 {[%emt 0:00:10]} 26. Rb8 {[%emt 0:00:53]} Qc7 {[%emt 0:00:07]} 27. Qb2 {[%emt 0:00:32]} Rf6 {[%emt 0:03:49]} 1-0

[Event "23rd Alekhine FIDE 2019"]
[Site "Voronezh"]
[Date "2019.06.14"]
[Round "3.14"]
[White "Kolomensky, Vladimir"]
[Black "Tokmantsev, Ivan"]
[Result "1-0"]
[ECO "B70"]
[WhiteElo "2134"]
[BlackElo "1894"]
[Annotator "NA"]
[PlyCount "85"]
[EventDate "2019.06.12"]
[EventType "swiss"]
[EventCountry "RUS"]
[SourceTitle "playchess.com"]
[Source "ChessBase"]
[SourceQuality "1"]
[TimeControl "40/5400+30:1800+30"]

1. e4 {[%emt 0:00:00]} c5 {[%emt 0:00:00]} 2. Nf3 {[%emt 0:00:00]} d6 {[%emt 0:00:18]} 3. d4 {[%emt 0:00:00]} cxd4 {[%emt 0:02:14]} 4. Nxd4 {[%emt 0:00:00]} Nf6 {[%emt 0:00:53]} 5. Nc3 {[%emt 0:00:03]} g6 {[%emt 0:00:16]} 6. Be2 {[%emt 0:00:13]} Bg7 {[%emt 0:01:15]} 7. O-O {[%emt 0:00:09]} O-O {[%emt 0:01:49]} 8. Bg5 {[%emt 0:00:15]} Nc6 {[%emt 0:02:08]} 9. Nb3 {[%emt 0:00:07]} a6 {[%emt 0:02:03]} 10. Re1 {[%emt 0:02:02]} b5 {[%emt 0:01:51]} 11. Bf1 {[%emt 0:00:08]} Re8 {[%emt 0:00:25]} 12. Nd5 {[%emt 0:01:07]} Nxd5 {[%emt 0:01:59]} 13. exd5 {[%emt 0:00:07]} Ne5 {[%emt 0:01:22]} 14. c3 {[%emt 1:09:11]} Bb7 {[%emt 0:00:35]} 15. Rb1 {[%emt 0:14:59]} Rc8 {[%emt 0:00:36]} 16. Be3 {[%emt 0:03:34]} Nc4 {[%emt 0:00:59]} 17. g3 {[%emt 0:02:01]} Qd7 {[%emt 0:01:41]} 18. Bg2 {[%emt 0:00:49]} Ba8 {[%emt 0:00:29]} 19. Bd4 {[%emt 0:00:23]} Bf8 {[%emt 0:01:00]} 20. Nd2 {[%emt 0:01:17]} Qb7 {[%emt 0:00:47]} 21. b3 {[%emt 0:02:55]} Nxd2 22. Qxd2 {[%emt 0:00:01]} e5 {[%emt 0:00:17]} 23. Be3 {[%emt 0:00:07]} f5 {[%emt 0:00:25]} 24. c4 {[%emt 0:00:02]} Rc7 {[%emt 0:01:05]} 25. a4 {[%emt 0:00:51]} Rec8 {[%emt 0:00:36]} 26. a5 {[%emt 0:00:38]} Rf7 {[%emt 0:00:56]} 27. f4 {[%emt 0:00:32]} e4 {[%emt 0:01:18]} 28. Bf1 {[%emt 0:00:07]} b4 {[%emt 0:00:31]} 29. Bb6 {[%emt 0:00:22]} Bg7 {[%emt 0:01:51]} 30. Qxb4 {[%emt 0:00:14]} Qe7 {[%emt 0:02:07]} 31. Qd2 {[%emt 0:00:22]} h6 {[%emt 0:01:15]} 32. Be3 {[%emt 0:00:20]} Bf6 {[%emt 0:00:06]} 33. b4 {[%emt 0:00:18]} Kh7 {[%emt 0:00:52]} 34. c5 {[%emt 0:00:13]} g5 {[%emt 0:02:13]} 35. c6 {[%emt 0:00:52]} Rg7 {[%emt 0:00:52]} 36. Kh1 {[%emt 0:00:23]} Rcg8 {[%emt 0:01:12]} 37. Bxa6 {[%emt 0:02:13]} Qf7 {[%emt 0:02:53]} 38. Rg1 {[%emt 0:00:43]} h5 {[%emt 0:02:06]} 39. Be2 {[%emt 0:00:25]} g4 {[%emt 0:02:30]} 40. b5 {[%emt 0:00:14]} Kg6 {[%emt 0:00:27]} 41. b6 {[%emt 0:30:13]} Bb7 {[%emt 0:31:51]} 42. cxb7 {[%emt 0:00:10]} Rh7 {[%emt 0:01:02]} 43. h4 {[%emt 0:00:41]} 1-0